bitfinex-derivatives/quotes_BTCF0:USTF0_20250218
["timestamp","ask_amount","ask_price","bid_price","bid_amount"]
[1739897939656,0.2823,94758.0,94741.0,0.2769]
[1739897939859,0.2823,94758.0,94748.0,0.3608]
[1739897940059,0.2823,94758.0,94749.0,0.2504]
[1739897940358,0.247,94766.0,94749.0,0.2504]
[1739897940563,0.46909781,94766.0,94750.0,0.13276]
[1739897940862,0.12853743,94760.0,94749.0,0.2504]
[1739897941060,0.12853743,94760.0,94749.0,0.25055837]
[1739897941966,0.12853743,94760.0,94750.0,0.001]
[1739897942465,0.12853743,94760.0,94749.0,0.25055837]
[1739897942665,0.34665753,94760.0,94749.0,0.25155837]
[1739897942868,0.2181201,94760.0,94749.0,0.25155837]
[1739897943059,0.13553743,94760.0,94749.0,0.25155837]
[1739897943383,0.13553743,94760.0,94749.0,0.00115837]
[1739897943384,0.2111404,94751.0,94749.0,0.00115837]
[1739897943964,0.5332,94750.0,94749.0,0.00115837]
[1739897944764,0.5332,94750.0,94749.0,0.00015837]
[1739897944962,0.5322,94750.0,94749.0,0.00015837]
[1739897945565,0.5392,94750.0,94749.0,0.00115837]
[1739897945962,0.5322,94750.0,94749.0,0.00015837]
[1739897946164,0.5332,94750.0,94749.0,0.00115837]
[1739897946461,0.8136,94750.0,94749.0,0.00115837]
[1739897946658,0.8126,94750.0,94749.0,0.00015837]
[1739897946864,0.8136,94750.0,94749.0,0.00115837]
[1739897947659,0.86494735,94750.0,94749.0,0.00115837]
[1739897947960,0.99348478,94750.0,94731.0,0.2656]
[1739897948167,0.99348478,94750.0,94734.0,0.2111765]
[1739897948468,0.99348478,94750.0,94735.0,0.3608]
[1739897948469,0.61844735,94750.0,94735.0,0.3608]
[1739897948670,0.33804735,94750.0,94737.0,0.2111684]
[1739897948856,0.05234735,94750.0,94746.0,0.3608]
[1739897949060,0.05234735,94750.0,94747.0,0.25238671]
[1739897949271,0.05234735,94750.0,94747.0,0.52788671]
[1739897949773,0.05234735,94750.0,94747.0,0.53853805]
[1739897950372,0.05234735,94750.0,94749.0,0.3608]
[1739897950674,0.001,94750.0,94749.0,0.3608]
[1739897950877,0.001,94750.0,94749.0,0.49344]
[1739897951462,0.12853743,94760.0,94749.0,0.49344]
[1739897951665,0.007,94750.0,94749.0,0.001]
[1739897951863,0.5548,94750.0,94749.0,0.001]
[1739897952266,0.56543413,94750.0,94749.0,0.001]
[1739897952757,0.29513413,94750.0,94749.0,0.001]
[1739897953266,0.29513413,94750.0,94736.0,0.2464]
[1739897953467,0.30213413,94750.0,94749.0,0.001]
[1739897953662,0.51327503,94750.0,94749.0,0.001]
[1739897954072,0.30213413,94750.0,94749.0,0.001]
[1739897955155,0.30213413,94750.0,94736.0,0.2464]
[1739897955156,0.30013413,94750.0,94736.0,0.2464]
[1739897955359,0.63981316,94750.0,94736.0,0.2464]
[1739897955561,0.30013413,94750.0,94736.0,0.2464]
[1739897955766,0.30213413,94750.0,94749.0,0.001]
[1739897956361,0.30013413,94750.0,94736.0,0.2464]
[1739897956771,0.3608,94746.0,94736.0,0.2464]
[1739897956970,0.2111765,94734.0,94733.0,0.00015837]
[1739897957175,0.3608,94737.0,94733.0,0.00015837]
[1739897957373,0.8781,94745.0,94733.0,0.00015837]
[1739897957672,0.00015837,94743.0,94733.0,0.00015837]
[1739897958273,0.2111611,94741.0,94733.0,0.00015837]
[1739897958676,0.35995837,94744.0,94733.0,0.00015837]
[1739897958875,0.2111682,94738.0,94733.0,0.00015837]
[1739897959760,0.004,94743.0,94733.0,0.00015837]
[1739897959973,0.571972,94737.0,94733.0,0.00015837]
[1739897960369,0.211172,94737.0,94733.0,0.00015837]
[1739897960675,0.2111682,94738.0,94733.0,0.00015837]
[1739897960875,0.5719715,94737.0,94733.0,0.00015837]
[1739897961169,0.3608,94737.0,94733.0,0.00015837]
[1739897961371,0.2111765,94734.0,94733.0,0.00015837]
[1739897962680,0.2161765,94734.0,94733.0,0.00015837]
[1739897963174,0.2171765,94734.0,94733.0,0.00115837]
[1739897963870,0.006,94734.0,94733.0,0.00115837]
[1739897964579,0.5779765,94734.0,94733.0,0.00115837]
[1739897966379,0.74044302,94734.0,94733.0,0.000353]
[1739897968283,0.2101956,94726.0,94724.0,0.00015837]
[1739897968982,0.5699956,94726.0,94724.0,0.00015837]
[1739897969374,0.2091956,94726.0,94724.0,0.00015837]
[1739897969573,0.2091956,94726.0,94724.0,0.00115837]
[1739897969574,0.2161956,94726.0,94724.0,0.00115837]
[1739897970186,0.3608,94725.0,94724.0,0.00115837]
[1739897970983,0.5719966,94725.0,94724.0,0.00015837]
[1739897971183,1.1117966,94725.0,94724.0,0.00015837]
[1739897971377,0.91158671,94725.0,94714.0,0.2591]
[1739897971573,0.91158671,94725.0,94688.0,0.2195]
[1739897971574,0.2112615,94696.0,94688.0,0.2195]
[1739897971881,0.2112704,94692.0,94689.0,0.2653]
[1739897972383,0.2112682,94693.0,94689.0,0.2653]
[1739897973878,0.2112724,94691.0,94689.0,0.2653]
[1739897976684,0.2112903,94683.0,94682.0,0.2757]
[1739897976879,0.3608,94688.0,94669.0,0.81]
[1739897977075,0.3608,94679.0,94669.0,0.81]
[1739897977385,0.3608,94679.0,94670.0,0.13252]
[1739897977572,0.3608,94679.0,94669.0,0.81]
[1739897977771,0.12853743,94680.0,94670.0,0.13252]
[1739897977970,0.70063453,94680.0,94669.0,0.81]
[1739897978187,0.48933743,94680.0,94669.0,0.81]
[1739897978485,0.2113102,94675.0,94669.0,0.81]
[1739897979279,0.48933743,94680.0,94669.0,0.81]
[1739897979280,0.2113182,94671.0,94669.0,0.81]
[1739897979485,0.3608,94670.0,94650.0,0.3608]
[1739897979682,0.5721193,94670.0,94655.0,0.5114]
[1739897979883,0.5721193,94670.0,94659.0,0.3608]
[1739897980086,0.01058029,94670.0,94659.0,0.3608]
[1739897980279,0.51625837,94679.0,94669.0,0.2113215]
[1739897980476,0.51625837,94679.0,94670.0,0.2535]
[1739897980477,0.00015837,94679.0,94670.0,0.2535]
[1739897980679,0.00015837,94679.0,94675.0,0.3608]
[1739897981275,0.01096357,94679.0,94675.0,0.3608]
[1739897981580,0.00015837,94679.0,94675.0,0.3608]
[1739897981983,0.2113104,94674.0,94671.0,0.2462]
[1739897982185,0.01111314,94679.0,94671.0,0.2462]
[1739897982381,0.00115837,94679.0,94671.0,0.2462]
[1739897982878,0.01199908,94679.0,94671.0,0.2462]
[1739897983291,0.01199908,94679.0,94670.0,0.2535]
[1739897983483,0.01199908,94679.0,94667.0,0.00158408]
[1739897983890,0.01199908,94679.0,94669.0,0.2113215]
[1739897984194,0.01199908,94679.0,94673.0,0.3608]
[1739897985187,0.01099908,94679.0,94673.0,0.3608]
[1739897985793,0.2113056,94677.0,94667.0,0.00158408]
[1739897985994,0.2113084,94675.0,94667.0,0.00158408]
[1739897986195,0.2113048,94677.0,94667.0,0.00158408]
[1739897986490,0.3608,94673.0,94667.0,0.00158408]
[1739897986788,0.211321,94670.0,94667.0,0.00158408]
[1739897986984,0.3608,94673.0,94667.0,0.00158408]
[1739897988290,0.01099908,94679.0,94667.0,0.00158408]
[1739897988291,0.01099908,94679.0,94672.0,0.3608]
[1739897989217,0.005,94673.0,94672.0,0.3608]
[1739897989415,0.005,94673.0,94672.0,0.49328]
[1739897989718,0.01799908,94679.0,94672.0,0.49328]
[1739897989914,0.01799908,94679.0,94672.0,0.3608]
[1739897991313,0.007,94673.0,94672.0,0.3608]
[1739897991614,0.00015837,94679.0,94677.0,0.2113019]
[1739897991819,0.00715837,94679.0,94678.0,0.7632]
[1739897993018,0.00715837,94679.0,94678.0,0.7737269]
[1739897993520,0.00715837,94679.0,94678.0,0.7632]
[1739897994608,0.00715837,94679.0,94678.0,0.7642]
[1739897996919,0.12853743,94700.0,94678.0,1.125]
[1739897997111,0.12853743,94700.0,94690.0,0.3608]
[1739897997512,0.12853743,94700.0,94695.0,0.2112625]
[1739897997718,0.12853743,94700.0,94696.0,0.2577]
[1739897997918,0.67124438,94704.0,94696.0,0.5087]
[1739897998123,0.49436142,94704.0,94696.0,0.5087]
[1739897998715,0.007,94700.0,94696.0,0.5087]
[1739897998911,0.007,94700.0,94696.0,0.2577]
[1739897999116,0.3608,94697.0,94695.0,0.001]
[1739897999313,0.3608,94697.0,94696.0,0.001]
[1739898000223,0.50136142,94704.0,94696.0,0.001]
[1739898000719,0.572059,94697.0,94696.0,0.001]
[1739898000924,0.2102769,94689.0,94688.0,0.00015837]
[1739898001112,0.3608,94689.0,94688.0,0.00015837]
[1739898001319,0.3608,94697.0,94689.0,0.2112749]
[1739898001519,0.3608,94697.0,94696.0,0.001]
[1739898001726,0.49436142,94704.0,94696.0,0.001]
[1739898001924,0.3608,94719.0,94706.0,0.211239]
[1739898002230,0.2409,94728.0,94706.0,0.211239]
[1739898002523,0.01096252,94711.0,94696.0,0.37135686]
[1739898002726,0.297834,94697.0,94690.0,0.5194]
[1739898002923,0.297834,94697.0,94694.0,0.2112651]
[1739898003228,0.297834,94697.0,94695.0,0.2112618]
[1739898003522,0.01096252,94711.0,94692.0,0.35997278]
[1739898003722,0.01096252,94711.0,94705.0,0.3608]
[1739898003925,0.01096252,94711.0,94706.0,0.2534]
[1739898004114,0.2112328,94709.0,94696.0,0.001]
[1739898004318,0.01096252,94711.0,94703.0,0.3608]
[1739898004519,0.01096252,94711.0,94704.0,0.2479]
[1739898004721,0.00515837,94707.0,94705.0,0.5720407]
[1739898004923,0.00515837,94707.0,94695.0,0.3608]
[1739898005229,0.00015837,94707.0,94695.0,0.3608]
[1739898005432,0.37825376,94706.0,94696.0,0.001]
[1739898005624,0.2632,94705.0,94696.0,0.001]
[1739898005821,0.2632,94705.0,94697.0,0.13236]
[1739898006016,0.2622,94705.0,94697.0,0.13236]
[1739898006425,0.3608,94700.0,94698.0,0.13236]
[1739898006824,0.3608,94700.0,94689.0,0.2464]
[1739898007025,0.48933743,94700.0,94690.0,0.13236]
[1739898007225,0.2588,94699.0,94683.0,0.26946675]
[1739898007427,0.2588,94699.0,94683.0,0.2586]
[1739898007821,0.2588,94699.0,94696.0,0.001]
[1739898008733,0.2588,94699.0,94696.0,0.13236]
[1739898009421,0.2112635,94695.0,94667.0,0.5065]
[1739898009722,0.2588,94699.0,94690.0,0.2112741]
[1739898009918,0.004,94700.0,94691.0,0.3608]
[1739898010123,0.004,94700.0,94692.0,0.62712]
[1739898010425,0.18651185,94704.0,94698.0,0.211255]
[1739898010631,0.006,94699.0,94698.0,0.211255]
[1739898011331,0.18651185,94704.0,94703.0,0.2112456]
[1739898011636,0.18651185,94704.0,94703.0,0.5720456]
[1739898012034,0.18651185,94704.0,94703.0,0.5827976]
[1739898012233,0.4042484,94710.0,94706.0,0.211239]
[1739898012831,0.4042484,94710.0,94703.0,0.3608]
[1739898013023,0.4042484,94710.0,94698.0,0.001]
[1739898013224,0.4042484,94710.0,94698.0,0.01157514]
[1739898013424,0.4042484,94710.0,94702.0,0.2112473]
[1739898013631,0.4042484,94710.0,94698.0,0.001]
[1739898013826,0.3608,94703.0,94698.0,0.001]
[1739898014136,0.2609,94702.0,94699.0,0.13232]
[1739898014339,0.2599,94702.0,94694.0,0.2195]
[1739898014538,0.2599,94702.0,94684.0,0.01064696]
[1739898014835,0.2599,94702.0,94698.0,0.001]
[1739898015231,0.2112501,94701.0,94698.0,0.001]
[1739898015431,0.2659,94702.0,94699.0,0.001]
[1739898016132,0.006,94702.0,94700.0,0.2112523]
[1739898016336,0.006,94702.0,94701.0,0.2431]
[1739898017032,0.00015837,94707.0,94702.0,0.2112479]
[1739898017230,0.00015837,94707.0,94706.0,0.3608]
[1739898018027,0.00015837,94707.0,94706.0,0.597]
[1739898018539,0.00715837,94707.0,94706.0,0.598]
[1739898021039,0.7488,94728.0,94710.0,0.12853743]
[1739898021232,0.7488,94728.0,94717.0,0.5720134]
[1739898021641,0.7488,94728.0,94717.0,0.3608]
[1739898021942,0.7488,94728.0,94718.0,0.13224]
[1739898022529,0.7488,94728.0,94726.0,0.2111928]
[1739898022733,0.7488,94728.0,94727.0,0.3608]
[1739898023033,0.00015837,94732.0,94727.0,0.3608]
[1739898023034,0.00015837,94732.0,94727.0,0.49304]
[1739898023233,0.00015837,94732.0,94731.0,0.2111832]
[1739898023437,0.00015837,94732.0,94731.0,0.22192733]
[1739898023644,0.00015837,94732.0,94731.0,0.2111832]
[1739898024127,0.00015837,94732.0,94727.0,0.3608]
[1739898024327,0.00115837,94732.0,94727.0,0.001]
[1739898024838,0.00115837,94732.0,94719.0,0.2458]
[1739898024839,0.00015837,94732.0,94731.0,0.001]
[1739898026636,0.00015837,94732.0,94731.0,0.2121832]
[1739898026838,0.00015837,94732.0,94731.0,0.001]
[1739898027248,0.00015837,94732.0,94727.0,0.3608]
[1739898027542,0.00115837,94732.0,94727.0,0.3618]
[1739898027948,0.00015837,94732.0,94727.0,0.2111911]
[1739898028138,0.00115837,94732.0,94731.0,0.001]
[1739898028638,0.00115837,94732.0,94727.0,0.2111911]
[1739898028639,0.00015837,94732.0,94727.0,0.2111911]
[1739898028839,0.00115837,94732.0,94727.0,0.2121911]
[1739898029236,0.00015837,94732.0,94727.0,0.2111911]
[1739898029431,0.00015837,94732.0,94725.0,0.3608]
[1739898029646,0.00115837,94732.0,94731.0,0.001]
[1739898030147,0.26085837,94732.0,94731.0,0.001]
[1739898030543,0.26085837,94732.0,94709.0,0.9204]
[1739898030741,0.3608,94724.0,94709.0,0.921]
[1739898030939,0.2576,94723.0,94709.0,0.93188793]
[1739898031140,0.2576,94723.0,94709.0,0.921]
[1739898031440,0.2112083,94720.0,94709.0,0.921]
[1739898031646,0.2576,94723.0,94709.0,0.921]
[1739898031855,0.5720189,94715.0,94709.0,0.921]
[1739898032040,0.2597,94714.0,94713.0,0.00115837]
[1739898032239,0.27041418,94714.0,94713.0,0.00115837]
[1739898032442,0.2597,94714.0,94713.0,0.00115837]
[1739898033648,0.2597,94714.0,94713.0,0.21238167]
[1739898033855,0.001,94720.0,94713.0,0.21238167]
[1739898034149,0.003,94714.0,94713.0,0.00115837]
[1739898034343,0.003,94714.0,94713.0,0.21238167]
[1739898034850,0.3638,94714.0,94713.0,0.00115837]
[1739898035054,0.003,94714.0,94713.0,0.36195837]
[1739898036146,0.003,94714.0,94713.0,0.86935837]
[1739898037043,0.003,94714.0,94713.0,1.08058167]
[1739898037256,0.003,94714.0,94713.0,1.09115656]
[1739898039652,0.003,94714.0,94713.0,0.57318167]
[1739898040358,0.01069717,94730.0,94713.0,0.37257411]
[1739898040660,0.01069717,94730.0,94727.0,0.5719915]
[1739898040856,0.01069717,94730.0,94727.0,0.3608]
[1739898041066,0.01069717,94730.0,94715.0,0.2496]
[1739898041358,0.01069717,94730.0,94713.0,0.37257411]
[1739898041359,0.5719881,94729.0,94713.0,0.37257411]
[1739898041744,0.5719881,94729.0,94727.0,0.001]
[1739898041950,0.2111899,94728.0,94727.0,0.001]
[1739898042156,0.33973923,94723.0,94713.0,0.00015837]
[1739898042348,0.3608,94714.0,94713.0,0.00015837]
[1739898042549,0.3608,94720.0,94713.0,0.00015837]
[1739898042958,0.3608,94718.0,94713.0,0.00015837]
[1739898043447,0.2375,94722.0,94715.0,0.001]
[1739898043852,0.2375,94722.0,94719.0,0.2112095]
[1739898044060,0.2375,94722.0,94713.0,0.57318127]
[1739898044356,0.2375,94722.0,94714.0,0.2112206]
[1739898044558,0.2375,94722.0,94713.0,0.36095837]
[1739898044754,0.5983,94722.0,94715.0,0.001]
[1739898045257,0.2601,94721.0,94715.0,0.001]
[1739898045442,0.2601,94721.0,94713.0,0.36195837]
[1739898046148,0.3608,94714.0,94713.0,0.00115837]
[1739898047053,0.6123,94714.0,94713.0,0.00115837]
[1739898047847,0.6113,94714.0,94713.0,0.00015837]
[1739898048460,0.6123,94714.0,94713.0,0.00115837]
[1739898051963,0.45143867,94714.0,94713.0,0.00115837]
[1739898053566,0.45143867,94714.0,94713.0,0.00959837]
[1739898053867,0.45143867,94714.0,94694.0,0.00158419]
[1739898054070,0.3608,94696.0,94694.0,0.00158419]
[1739898054271,0.4903,94695.0,94694.0,0.00158419]
[1739898056774,0.4923,94695.0,94694.0,0.00158419]
[1739898056976,0.49374653,94695.0,94694.0,0.00158419]
[1739898057173,0.74574653,94695.0,94694.0,0.00258419]
[1739898057472,1.11737068,94695.0,94694.0,0.00258419]
[1739898057875,1.11537068,94695.0,94694.0,0.00158419]
[1739898058076,1.11837068,94695.0,94694.0,0.00258419]
[1739898059280,0.74674653,94695.0,94694.0,0.00258419]
[1739898059573,0.00444653,94695.0,94694.0,0.00258419]
[1739898060572,0.00144653,94695.0,94694.0,0.00258419]
[1739898060771,0.00344653,94695.0,94694.0,0.00258419]
[1739898061668,0.00144653,94695.0,94694.0,0.00158419]
[1739898061971,0.00344653,94695.0,94694.0,0.00258419]
[1739898063173,0.00015837,94704.0,94702.0,0.2112472]
[1739898063374,0.00015837,94704.0,94703.0,0.8595]
[1739898063573,0.01073655,94722.0,94703.0,0.8595]
[1739898063779,0.01073655,94722.0,94716.0,0.3608]
[1739898063976,0.4883,94729.0,94716.0,0.3608]
[1739898064678,0.01054467,94722.0,94707.0,0.00015837]
[1739898064880,0.4985,94716.0,94707.0,0.00015837]
[1739898065273,0.4985,94716.0,94711.0,0.3608]
[1739898065581,0.4985,94716.0,94707.0,0.00015837]
[1739898066478,0.2112259,94712.0,94707.0,0.00015837]
[1739898066673,0.2614,94715.0,94707.0,0.00015837]
[1739898067188,0.2464,94716.0,94707.0,0.00015837]
[1739898067683,0.2464,94716.0,94712.0,0.3608]
[1739898067884,0.2464,94716.0,94712.0,0.132]
[1739898068074,0.01054467,94722.0,94714.0,0.3608]
[1739898068274,0.2463,94738.0,94724.0,0.2111967]
[1739898068469,0.2463,94738.0,94725.0,0.8571]
[1739898068780,0.2463,94738.0,94733.0,0.3608]
[1739898069083,0.12853743,94760.0,94740.0,0.2111618]
[1739898069271,0.12853743,94760.0,94748.0,0.3608]
[1739898069272,0.01077514,94757.0,94748.0,0.3608]
[1739898069980,0.00015837,94758.0,94748.0,0.3608]
[1739898070176,0.00015837,94758.0,94744.0,0.2438]
[1739898070683,0.12853743,94754.0,94744.0,0.2438]
[1739898071073,0.01075091,94758.0,94744.0,0.2438]
[1739898071477,0.01075091,94758.0,94748.0,0.3608]
[1739898072077,0.01075091,94758.0,94744.0,0.2438]
[1739898072980,0.3608,94754.0,94744.0,0.2438]
[1739898073180,0.01075091,94758.0,94745.0,0.13196]
[1739898073386,0.01075091,94758.0,94744.0,0.2438]
[1739898073587,0.01075091,94758.0,94749.0,0.2111419]
[1739898073778,0.00015837,94758.0,94750.0,0.25]
[1739898075987,0.219,94769.0,94750.0,0.25]
[1739898075988,0.3608,94795.0,94757.0,0.3608]
[1739898076185,0.4994,94784.0,94770.0,0.48933743]
[1739898076385,0.01065128,94786.0,94771.0,0.4968]
[1739898076687,0.12853743,94790.0,94771.0,0.4968]
[1739898076883,0.01086031,94786.0,94771.0,0.4968]
[1739898077885,0.00015828,94787.0,94773.0,0.2110889]
[1739898078977,0.00015828,94787.0,94771.0,0.4978]
[1739898079180,0.00015828,94787.0,94776.0,0.2110818]
[1739898079382,0.00015828,94787.0,94785.0,0.2110624]
[1739898079888,0.00015828,94787.0,94785.0,0.4615624]
[1739898080084,0.00015828,94787.0,94785.0,0.2505]
[1739898080782,0.00015828,94787.0,94785.0,0.4615621]
[1739898083090,0.00015828,94787.0,94785.0,0.2110621]
[1739898083294,0.00015828,94787.0,94772.0,0.2404]
[1739898083991,0.00015828,94787.0,94780.0,0.2110722]
[1739898084187,0.00015828,94787.0,94785.0,0.2110627]
[1739898084983,0.00015828,94787.0,94784.0,0.3608]
[1739898085894,0.00015828,94787.0,94779.0,0.3608]
[1739898086497,0.00015828,94787.0,94779.0,0.5718758]
[1739898087391,0.2110611,94786.0,94779.0,0.3608]
[1739898087587,0.2439,94785.0,94779.0,0.3608]
[1739898087798,0.2439,94785.0,94783.0,0.211067]
[1739898088195,0.00015828,94787.0,94786.0,0.2110607]
[1739898090101,0.00015828,94787.0,94779.0,0.3608]
[1739898090602,0.00015828,94787.0,94782.0,0.211069]
[1739898090802,0.00015828,94787.0,94779.0,0.3608]
[1739898091402,0.211073,94781.0,94779.0,0.3608]
[1739898091597,0.7474,94780.0,94779.0,0.3608]
[1739898091902,0.74323,94780.0,94778.0,0.13176]
[1739898092092,0.74323,94780.0,94768.0,0.3608]
[1739898092295,0.74323,94780.0,94768.0,0.6129]
[1739898092502,0.36095828,94787.0,94776.0,0.3608]
[1739898092695,0.36095828,94787.0,94776.0,0.5718821]
[1739898092889,0.36095828,94787.0,94776.0,0.3608]
[1739898093100,0.36095828,94787.0,94773.0,0.211089]
[1739898093301,0.00015828,94787.0,94776.0,0.3608]
[1739898095495,0.00015828,94787.0,94779.0,0.211075]
[1739898095799,0.00015828,94787.0,94776.0,0.3608]
[1739898096191,0.2110633,94785.0,94776.0,0.3608]
[1739898096504,0.00015828,94787.0,94776.0,0.3608]
[1739898096899,0.00015828,94787.0,94776.0,0.5718824]
[1739898097198,0.00015828,94787.0,94776.0,0.3608]
[1739898097600,0.00015828,94787.0,94778.0,0.2110775]
[1739898097903,0.00015828,94787.0,94786.0,0.3608]
[1739898098602,0.00015828,94787.0,94786.0,0.5718607]
[1739898099695,0.00015828,94787.0,94786.0,0.5728607]
[1739898100296,0.00015828,94787.0,94786.0,0.5718607]
[1739898100907,0.18634329,94797.0,94796.0,0.2110384]
[1739898101204,0.18634329,94797.0,94796.0,0.5718384]
[1739898101792,0.10692447,94797.0,94796.0,0.5718384]
[1739898102703,0.1,94800.0,94799.0,0.2110317]
[1739898102903,0.1,94800.0,94799.0,0.5718317]
[1739898103212,0.1,94800.0,94799.0,0.58261423]
[1739898105013,0.1,94800.0,94799.0,0.58361423]
[1739898105305,0.1,94800.0,94799.0,0.37258253]
[1739898106205,0.1,94800.0,94799.0,0.3618]
[1739898106410,0.1,94800.0,94799.0,0.50439142]
[1739898106712,0.1,94800.0,94799.0,0.3618]
[1739898107005,0.1,94800.0,94799.0,0.49348]
[1739898107216,0.1,94800.0,94799.0,0.13268]
[1739898107410,0.1,94800.0,94799.0,0.001]
[1739898107704,0.1014301,94800.0,94799.0,0.001]
[1739898108111,0.1014301,94800.0,94790.0,0.00015828]
[1739898108309,0.2110348,94798.0,94790.0,0.00015828]
[1739898108616,0.0014301,94794.0,94790.0,0.00015828]
[1739898109310,0.0014301,94794.0,94792.0,0.2110467]
[1739898109808,0.0014301,94793.0,94791.0,0.2110495]
[1739898110013,0.0014301,94793.0,94791.0,0.4727495]
[1739898110506,0.0014301,94793.0,94792.0,0.3608]
[1739898111802,0.0034301,94793.0,94792.0,0.3608]
[1739898114114,0.0034301,94793.0,94790.0,0.26225828]
[1739898114413,0.2124752,94793.0,94792.0,0.001]
[1739898114614,0.0014301,94793.0,94792.0,0.001]
[1739898114815,0.0014301,94793.0,94790.0,0.00015828]
[1739898115019,0.0024301,94793.0,94790.0,0.00015828]
[1739898115713,0.2124776,94792.0,94790.0,0.00015828]
[1739898116014,0.0014301,94792.0,94790.0,0.00015828]
[1739898116917,0.0014301,94791.0,94790.0,0.00015828]
[1739898119619,0.0024301,94791.0,94790.0,0.21121008]
[1739898119815,0.0024301,94791.0,94790.0,0.00015828]
[1739898120709,0.0024301,94791.0,94790.0,0.21121008]
[1739898120909,0.0014301,94791.0,94790.0,0.00015828]
[1739898121110,0.0024301,94791.0,94790.0,0.00015828]
[1739898124710,0.2134796,94791.0,94790.0,0.00015828]
[1739898124918,0.0024301,94791.0,94790.0,0.00015828]
[1739898125127,0.0024301,94791.0,94790.0,0.57201008]
[1739898126520,0.1,94800.0,94790.0,0.36095828]
[1739898126721,0.1,94800.0,94799.0,0.3608]
[1739898126922,0.1,94800.0,94799.0,0.49236]
[1739898132630,0.1,94800.0,94791.0,0.2619]
[1739898132824,0.2110365,94797.0,94790.0,0.36095828]
[1739898133129,0.2110495,94791.0,94790.0,0.36095828]
[1739898133324,0.5072,94799.0,94790.0,0.36095828]
[1739898133829,0.2110433,94794.0,94790.0,0.36095828]
[1739898134129,0.51784185,94799.0,94790.0,0.00015828]
[1739898134130,0.5718477,94792.0,94790.0,0.00015828]
[1739898136216,0.3608,94792.0,94790.0,0.00015828]
[1739898136823,0.2110495,94791.0,94790.0,0.00015828]
[1739898137027,0.2110495,94791.0,94775.0,0.3608]
[1739898137028,0.2110495,94791.0,94776.0,0.2110823]
[1739898137230,0.12853743,94790.0,94777.0,0.2110801]
[1739898137429,0.05132927,94791.0,94778.0,0.2110779]
[1739898137621,0.12853743,94790.0,94775.0,0.37168899]
[1739898137816,0.3608,94782.0,94775.0,0.37168899]
[1739898138215,0.5041,94781.0,94775.0,0.3608]
[1739898138419,0.5041,94781.0,94770.0,0.0015825]
[1739898138627,0.12853743,94780.0,94770.0,0.0015825]
[1739898138933,0.12853743,94780.0,94770.0,0.01221261]
[1739898139227,0.12853743,94780.0,94770.0,0.0015825]
[1739898140632,0.2110834,94776.0,94770.0,0.0015825]
[1739898141327,0.12853743,94780.0,94770.0,0.0015825]
[1739898141328,0.3608,94774.0,94770.0,0.0015825]
[1739898141528,0.2110941,94771.0,94770.0,0.0015825]
[1739898142427,0.2561,94773.0,94770.0,0.0015825]
[1739898142635,0.3608,94774.0,94770.0,0.0015825]
[1739898142825,0.2552,94781.0,94774.0,0.2110865]
[1739898143630,0.2552,94781.0,94772.0,0.3608]
[1739898143836,0.2552,94781.0,94773.0,0.13148]
[1739898144132,0.0422,94780.0,94773.0,0.13148]
[1739898144330,0.05195,94780.0,94773.0,0.13148]
[1739898144532,0.05195,94780.0,94770.0,0.0015825]
[1739898144533,0.3608,94774.0,94770.0,0.0015825]
[1739898145035,0.2110924,94772.0,94770.0,0.0015825]
[1739898145241,0.6167,94773.0,94770.0,0.0015825]
[1739898145431,0.6579,94773.0,94770.0,0.0015825]
[1739898145734,0.00844,94772.0,94770.0,0.0015825]
[1739898146032,0.36924,94772.0,94770.0,0.0015825]
[1739898146232,0.00844,94772.0,94770.0,0.2126769]
[1739898146432,0.00844,94772.0,94771.0,0.4993]
[1739898146831,0.07385,94775.0,94771.0,0.4993]
[1739898146832,0.07385,94775.0,94774.0,0.2110874]
[1739898147237,0.5094,94799.0,94779.0,0.2110763]
[1739898147535,0.00975,94780.0,94779.0,0.5718763]
[1739898148122,0.00975,94780.0,94779.0,0.3608]
[1739898149238,0.37055,94780.0,94771.0,0.3638]
[1739898149440,0.2613,94779.0,94770.0,0.0015825]
[1739898149635,0.26974,94779.0,94770.0,0.0015825]
[1739898150136,0.00744,94779.0,94771.0,0.2532]
[1739898150341,0.00744,94779.0,94778.0,0.3608]
[1739898150634,0.00944,94779.0,94778.0,0.3608]
[1739898152330,0.00744,94779.0,94778.0,0.3608]
[1739898152531,0.01044,94779.0,94778.0,0.3608]
[1739898153130,0.00844,94779.0,94778.0,0.3608]
[1739898153333,0.25664,94779.0,94778.0,0.3608]
[1739898153533,0.51044,94779.0,94778.0,0.3608]
[1739898153734,0.50944,94779.0,94778.0,0.3608]
[1739898153934,0.51344,94779.0,94778.0,0.3608]
[1739898154132,0.01144,94779.0,94778.0,0.49224]
[1739898155132,0.01144,94779.0,94778.0,1.25884]
[1739898155332,0.01044,94779.0,94778.0,1.25984]
[1739898156036,0.00844,94779.0,94778.0,1.25884]
[1739898156235,0.1525663,94788.0,94781.0,0.2110715]
[1739898156433,0.1525663,94788.0,94778.0,0.87206]
[1739898156635,0.001,94779.0,94778.0,0.3608]
[1739898156834,0.001,94779.0,94778.0,0.49224]
[1739898157846,0.248,94779.0,94778.0,0.49224]
[1739898158031,0.247,94779.0,94778.0,0.49224]
[1739898158233,0.249,94779.0,94778.0,0.49224]
[1739898158737,0.249,94779.0,94778.0,0.49324]
[1739898159740,0.25627,94779.0,94778.0,0.49224]
[1739898159953,0.25727,94779.0,94778.0,0.3608]
[1739898160851,0.25727,94779.0,94769.0,0.00015828]
[1739898161841,0.2110931,94772.0,94769.0,0.00015828]
[1739898162048,0.4799,94771.0,94769.0,0.00015828]
[1739898163534,0.6909941,94771.0,94769.0,0.00015828]
[1739898163738,0.4799,94771.0,94769.0,0.00015828]
[1739898164449,0.02637,94770.0,94769.0,0.00015828]
[1739898165151,0.2374663,94770.0,94769.0,0.00015828]
[1739898165740,0.2394663,94770.0,94769.0,0.00015828]
[1739898168246,0.6002663,94770.0,94769.0,0.00015828]
[1739898168753,0.65160535,94770.0,94769.0,0.00015828]
[1739898169055,0.07970905,94770.0,94769.0,0.00015828]
[1739898169449,0.44050905,94770.0,94769.0,0.00015828]
[1739898169652,0.65160535,94770.0,94769.0,0.00015828]